Workbook

Sheet 就労状況報告書 出面表（参考）
B1: 被共済者就労状況報告書（出面表）
C3: 工事名：
AF4: 受注者氏名
C5: 令和 年 月分
B8: № | C8: 氏 名 | D8: 被共済者番号 | E8: 日 | F8: 1 | G8: 2 | H8: 3 | I8: 4 | J8: 5 | K8: 6 | L8: 7 | M8: 8 | N8: 9 | O8: 10 | P8: 11 | Q8: 12 | R8: 13 | S8: 14 | T8: 15 | U8: 16 | V8: 17 | W8: 18 | X8: 19 | Y8: 20 | Z8: 21 | AA8: 22 | AB8: 23 | AC8: 24 | AD8: 25 | AE8: 26 | AF8: 27 | AG8: 28 | AH8: 29 | AI8: 30 | AK8: 就労日数 | AL8: 備考
E9: 曜
B10: 1
B11: 2
B12: 3
B13: 4
B14: 5
B15: 6
B16: 7
B17: 8
B18: 9
B19: 10
B20: 11
B21: 12
B22: 13
B23: 14
B24: 15
B25: 16
B26: 17
B27: 18
B28: 19
B29: 20
B30: 合 計 | AK30: =SUM(AK10:AK29) -> 0

Sheet 事務受託様式２号
B1: 建退共事務受託様式２号
B5: 建退共制度に係る被共済者就労状況報告書
B6: （兼建設業退職金共済証紙交付依頼書）
V8: 整理番号
B13: 交付元事業所
H16: 報告事業所
H17: 住 所
H18: 電 話 番 号
H19: 共済契約者 番号
H20: 工 事 名
H21: 工 事 コード
C23: 以下のとおり報告します。
M25: 記
C27: 期 間 | M27: ～ | Y27: 現場責任者確認
C29: 被共済者数 | J29: 人 | L29: 延べ就労日数 | T29: 日
B35: 建 設 業 退 職 金 共 済 証 紙 受 領 書
V37: 整理番号
B40: 交付元事業所 | G40: =IF(#REF!=0,"",#REF!&" 殿") -> 
K43: １日券 | S43: 枚
K46: １０日券 | S46: 枚 | W46: =IF(AND(N42="",N45=""),"",IF(Q29=(N42+(N45*10)),"","請求に対する受領枚数エラー")) -> 
C49: 上記の共済証紙を受領いたしました。
L55: 報告事業所

Sheet 共済証紙受払簿(実施用)
A1: 様式２９号
B2: 建 設 業 退 職 金 共 済 証 紙 受 払 簿
AA3: 工 事 名 ：
AA4: 工 期 ：
AA5: 受注者氏名 ：
AA6: 現場代理人 ：
B8: 受入・払出 | H8: 受 入 | K8: 払 出 | W8: 証紙残数 | Z8: 払出欄の貼付の内訳 | AH8: 備 考
B9: 年 月 日 | K9: 元請貼付分 | N9: 下請交付分 | T9: 計(元請+下請) | Z9: 貼付人員 | AC9: 就 労 月
N10: 下請名
C11: 年 | E11: 月 | G11: 日 | J11: 日分 | M11: 日分 | R11: 日分 | T11: =IF(F11="","",K11+N11) ->  | V11: 日分 | W11: =IF(F11="","",H11-T11) ->  | Y11: 日分 | AB11: 人 | AD11: 年 | AF11: 月分
N13: 下請名
C14: 年 | E14: 月 | G14: 日 | J14: 日分 | M14: 日分 | R14: 日分 | T14: =IF(F14="","",K14+N14) ->  | V14: 日分 | W14: =IF(F14="","",W11+H14-T14) ->  | Y14: 日分 | AB14: 人 | AD14: 年 | AF14: 月分
N16: 下請名
C17: 年 | E17: 月 | G17: 日 | J17: 日分 | M17: 日分 | R17: 日分 | T17: =IF(F17="","",K17+N17) ->  | V17: 日分 | W17: =IF(F17="","",W14+H17-T17) ->  | Y17: 日分 | AB17: 人 | AD17: 年 | AF17: 月分
N19: 下請名
C20: 年 | E20: 月 | G20: 日 | J20: 日分 | M20: 日分 | R20: 日分 | T20: =IF(F20="","",K20+N20) ->  | V20: 日分 | W20: =IF(F20="","",W17+H20-T20) ->  | Y20: 日分 | AB20: 人 | AD20: 年 | AF20: 月分
N22: 下請名
C23: 年 | E23: 月 | G23: 日 | J23: 日分 | M23: 日分 | R23: 日分 | T23: =IF(F23="","",K23+N23) ->  | V23: 日分 | W23: =IF(F23="","",W20+H23-T23) ->  | Y23: 日分 | AB23: 人 | AD23: 年 | AF23: 月分
N25: 下請名
C26: 年 | E26: 月 | G26: 日 | J26: 日分 | M26: 日分 | R26: 日分 | T26: =IF(F26="","",K26+N26) ->  | V26: 日分 | W26: =IF(F26="","",W23+H26-T26) ->  | Y26: 日分 | AB26: 人 | AD26: 年 | AF26: 月分
N28: 下請名
C29: 年 | E29: 月 | G29: 日 | J29: 日分 | M29: 日分 | R29: 日分 | T29: =IF(F29="","",K29+N29) ->  | V29: 日分 | W29: =IF(F29="","",W26+H29-T29) ->  | Y29: 日分 | AB29: 人 | AD29: 年 | AF29: 月分
N31: 下請名
C32: 年 | E32: 月 | G32: 日 | J32: 日分 | M32: 日分 | R32: 日分 | T32: =IF(F32="","",K32+N32) ->  | V32: 日分 | W32: =IF(F32="","",W29+H32-T32) ->  | Y32: 日分 | AB32: 人 | AD32: 年 | AF32: 月分
N34: 下請名
C35: 年 | E35: 月 | G35: 日 | J35: 日分 | M35: 日分 | R35: 日分 | T35: =IF(F35="","",K35+N35) ->  | V35: 日分 | W35: =IF(F35="","",W32+H35-T35) ->  | Y35: 日分 | AB35: 人 | AD35: 年 | AF35: 月分
N37: 下請名
C38: 年 | E38: 月 | G38: 日 | J38: 日分 | M38: 日分 | R38: 日分 | T38: =IF(F38="","",K38+N38) ->  | V38: 日分 | W38: =IF(F38="","",W35+H38-T38) ->  | Y38: 日分 | AB38: 人 | AD38: 年 | AF38: 月分
N40: 下請名
C41: 年 | E41: 月 | G41: 日 | J41: 日分 | M41: 日分 | R41: 日分 | T41: =IF(F41="","",K41+N41) ->  | V41: 日分 | W41: =IF(F41="","",W38+H41-T41) ->  | Y41: 日分 | AB41: 人 | AD41: 年 | AF41: 月分
N43: 下請名
C44: 年 | E44: 月 | G44: 日 | J44: 日分 | M44: 日分 | R44: 日分 | T44: =IF(F44="","",K44+N44) ->  | V44: 日分 | W44: =IF(F44="","",W41+H44-T44) ->  | Y44: 日分 | AB44: 人 | AD44: 年 | AF44: 月分
N46: 下請名
C47: 年 | E47: 月 | G47: 日 | J47: 日分 | M47: 日分 | R47: 日分 | T47: =IF(F47="","",K47+N47) ->  | V47: 日分 | W47: =IF(F47="","",W44+H47-T47) ->  | Y47: 日分 | AB47: 人 | AD47: 年 | AF47: 月分
C50: 合 計 | H50: =IF(SUM(H11,H14,H17,H20,H23,H26,H29,H32,H35,H38,H41,H44,H47)=0,"",SUM(H11:H47)) ->  | J50: 日分 | K50: =IF(SUM(K11,K14,K17,K20,K23,K26,K29,K32,K35,K38,K41,K44,K47)=0,"",SUM(K11:K47)) ->  | M50: 日分 | N50: =IF(SUM(N11,N14,N17,N20,N23,N26,N29,N32,N35,N38,N41,N44)=0,"",SUM(N11:N47)) ->  | R50: 日分 | T50: =IF(SUM(T11,T14,T17,T20,T23,T26,T29,T32,T35,T38,T41,T44,T47)=0,"",SUM(T11:T47)) ->  | V50: 日分 | W50: =IF(SUM(W11,W14,W17,W20,W23,W26,W29,W32,W35,W38,W41,W44,W47)=0,"",H50-T50) ->  | Y50: 日分 | Z50: =IF(SUM(Z11,Z14,Z17,Z20,Z23,Z26,Z29,Z32,Z35,Z38,Z41,Z44,Z47)=0,"",SUM(Z11:Z47)) ->  | AB50: 人
E53: 注１． | K53: の箇所に必要事項を入力のこと。受入・払出年月日は入力しなければ計算しないので必ず入力のこと。削除するときはDeleteキーで行うこと。
E54: 注２． | H54: 払出の元請貼付分及び下請交付分は延日数（＝延人数）で記入すること。
E55: 注３． | H55: 貼付人員（＝貼付手帳数）は（元請＋下請）の合計を記入すること。

Sheet 共済証紙受払簿 (記入例)
A1: 様式２９ | AM1: (記入例)
B2: 建 設 業 退 職 金 共 済 証 紙 受 払 簿
AA3: 工 事 名 ： 姫 路 山 整 備 工 事
AA4: 工 期 ： 平成26年9月15日～平成27年6月15日
AA5: 受注者氏名 ： 姫山建設 ㈱ 代表取締役 姫山一郎
AA6: 現場代理人 ： 姫 山 太 郎
B8: 受入・払出 | H8: 受 入 | K8: 払 出 | W8: 証紙残数 | Z8: 払出欄の貼付の内訳 | AH8: 備 考
B9: 年 月 日 | K9: 元請貼付分 | N9: 下請交付分 | T9: 計(元請+下請) | Z9: 貼付人員 | AC9: 就 労 月
N10: 下請名 | AH10: 購入
B11: 26 | C11: 年 | D11: 9 | E11: 月 | F11: 14 | G11: 日 | H11: 200 | J11: 日分 | M11: 日分 | R11: 日分 | T11: =IF(F11="","",K11+N11) -> 0 | V11: 日分 | W11: =IF(F11="","",H11-T11) -> 200 | Y11: 日分 | AB11: 人 | AD11: 年 | AF11: 月分
N13: 下請名 | P13: 松岡組
B14: 26 | C14: 年 | D14: 10 | E14: 月 | F14: 1 | G14: 日 | J14: 日分 | K14: 10 | M14: 日分 | N14: 20 | R14: 日分 | T14: =IF(F14="","",K14+N14) -> 30 | V14: 日分 | W14: =IF(F14="","",W11+H14-T14) -> 170 | Y14: 日分 | Z14: 3 | AB14: 人 | AC14: 26 | AD14: 年 | AE14: 9 | AF14: 月分
N16: 下請名 | P16: 山口組
B17: 26 | C17: 年 | D17: 10 | E17: 月 | F17: 31 | G17: 日 | J17: 日分 | K17: 30 | M17: 日分 | N17: 50 | R17: 日分 | T17: =IF(F17="","",K17+N17) -> 80 | V17: 日分 | W17: =IF(F17="","",W14+H17-T17) -> 90 | Y17: 日分 | Z17: 5 | AB17: 人 | AC17: 26 | AD17: 年 | AE17: 10 | AF17: 月分
N19: 下請名 | P19: 松岡組
B20: 26 | C20: 年 | D20: 11 | E20: 月 | F20: 28 | G20: 日 | J20: 日分 | K20: 25 | M20: 日分 | N20: 60 | R20: 日分 | T20: =IF(F20="","",K20+N20) -> 85 | V20: 日分 | W20: =IF(F20="","",W17+H20-T20) -> 5 | Y20: 日分 | Z20: 6 | AB20: 人 | AC20: 26 | AD20: 年 | AE20: 11 | AF20: 月分
N22: 下請名 | AH22: 購入
B23: 26 | C23: 年 | D23: 12 | E23: 月 | F23: 3 | G23: 日 | H23: 200 | J23: 日分 | M23: 日分 | R23: 日分 | T23: =IF(F23="","",K23+N23) -> 0 | V23: 日分 | W23: =IF(F23="","",W20+H23-T23) -> 205 | Y23: 日分 | AB23: 人 | AD23: 年 | AF23: 月分
N25: 下請名 | P25: 岡崎組
B26: 26 | C26: 年 | D26: 12 | E26: 月 | F26: 27 | G26: 日 | J26: 日分 | K26: 25 | M26: 日分 | N26: 50 | R26: 日分 | T26: =IF(F26="","",K26+N26) -> 75 | V26: 日分 | W26: =IF(F26="","",W23+H26-T26) -> 130 | Y26: 日分 | Z26: 4 | AB26: 人 | AC26: 26 | AD26: 年 | AE26: 12 | AF26: 月分
N28: 下請名 | P28: 山口組
B29: 27 | C29: 年 | D29: 1 | E29: 月 | F29: 31 | G29: 日 | J29: 日分 | K29: 25 | M29: 日分 | N29: 80 | R29: 日分 | T29: =IF(F29="","",K29+N29) -> 105 | V29: 日分 | W29: =IF(F29="","",W26+H29-T29) -> 25 | Y29: 日分 | Z29: 5 | AB29: 人 | AC29: 27 | AD29: 年 | AE29: 1 | AF29: 月分
N31: 下請名 | P31: 松岡組 | AH31: 購入
B32: 27 | C32: 年 | D32: 2 | E32: 月 | F32: 28 | G32: 日 | H32: 300 | J32: 日分 | K32: 23 | M32: 日分 | N32: 46 | R32: 日分 | T32: =IF(F32="","",K32+N32) -> 69 | V32: 日分 | W32: =IF(F32="","",W29+H32-T32) -> 256 | Y32: 日分 | Z32: 3 | AB32: 人 | AC32: 27 | AD32: 年 | AE32: 2 | AF32: 月分
N34: 下請名 | P34: 岡崎組
B35: 27 | C35: 年 | D35: 3 | E35: 月 | F35: 31 | G35: 日 | J35: 日分 | K35: 28 | M35: 日分 | N35: 85 | R35: 日分 | T35: =IF(F35="","",K35+N35) -> 113 | V35: 日分 | W35: =IF(F35="","",W32+H35-T35) -> 143 | Y35: 日分 | Z35: 4 | AB35: 人 | AC35: 27 | AD35: 年 | AE35: 3 | AF35: 月分
N37: 下請名 | P37: 三木組
B38: 27 | C38: 年 | D38: 4 | E38: 月 | F38: 30 | G38: 日 | J38: 日分 | K38: 27 | M38: 日分 | N38: 107 | R38: 日分 | T38: =IF(F38="","",K38+N38) -> 134 | V38: 日分 | W38: =IF(F38="","",W35+H38-T38) -> 9 | Y38: 日分 | Z38: 6 | AB38: 人 | AC38: 27 | AD38: 年 | AE38: 4 | AF38: 月分
N40: 下請名 | AH40: 自社保有分
B41: 27 | C41: 年 | D41: 5 | E41: 月 | F41: 30 | G41: 日 | H41: 100 | J41: 日分 | M41: 日分 | R41: 日分 | T41: =IF(F41="","",K41+N41) -> 0 | V41: 日分 | W41: =IF(F41="","",W38+H41-T41) -> 109 | Y41: 日分 | AB41: 人 | AD41: 年 | AF41: 月分
N43: 下請名 | P43: 山口組
B44: 27 | C44: 年 | D44: 5 | E44: 月 | F44: 31 | G44: 日 | J44: 日分 | K44: 25 | M44: 日分 | N44: 83 | R44: 日分 | T44: =IF(F44="","",K44+N44) -> 108 | V44: 日分 | W44: =IF(F44="","",W41+H44-T44) -> 1 | Y44: 日分 | Z44: 4 | AB44: 人 | AC44: 27 | AD44: 年 | AE44: 5 | AF44: 月分
N46: 下請名
C47: 年 | E47: 月 | G47: 日 | J47: 日分 | M47: 日分 | R47: 日分 | T47: =IF(F47="","",K47+N47) ->  | V47: 日分 | W47: =IF(F47="","",W44+H47-T47) ->  | Y47: 日分 | AB47: 人 | AD47: 年 | AF47: 月分
C50: 合 計 | H50: =SUM(H11:I47) -> 800 | J50: 日分 | K50: =IF(SUM(K11,K14,K17,K20,K23,K26,K29,K32,K35,K38,K41,K44,K47)=0,"",SUM(K11:K47)) -> 218 | M50: 日分 | N50: =IF(SUM(N11,N14,N17,N20,N23,N26,N29,N32,N35,N38,N41,N44)=0,"",SUM(N11:N47)) -> 581 | R50: 日分 | T50: =IF(SUM(T11,T14,T17,T20,T23,T26,T29,T32,T35,T38,T41,T44,T47)=0,"",SUM(T11:T47)) -> 799 | V50: 日分 | W50: =IF(SUM(W11,W14,W17,W20,W23,W26,W29,W32,W35,W38,W41,W44,W47)=0,"",H50-T50) -> 1 | Y50: 日分 | Z50: =IF(SUM(Z11,Z14,Z17,Z20,Z23,Z26,Z29,Z32,Z35,Z38,Z41,Z44,Z47)=0,"",SUM(Z11:Z47)) -> 40 | AB50: 人
E53: 注１． | K53: の箇所に必要事項を入力のこと。受入・払出年月日は入力しなければ計算しないので必ず入力のこと。削除するときはDeleteキーで行うこと。
E54: 注２． | H54: 払出の元請貼付分及び下請交付分は延日数（＝延人数）で記入すること。
E55: 注３． | H55: 貼付人員（＝貼付手帳数）は（元請＋下請）の合計を記入すること。

Sheet 建設業退職金共済証紙辞退届（参考）
G2: 令和 年 月 日
A4: 工事 作業所 | B4: 工事 作業所
D5: 様
A11: 建設業退職金共済証紙辞退届
A15: 理 由 書
A17: （該当するものに○を囲んでください）
A21: １ 自社に退職金制度がある。
A24: ２ 従業員が中小企業退職金共済事業の被保険者である。
A27: ３ その他の退職金制度 に加入している。
A30: ４ その他『 』
A33: 上記、理由により建設業退職金制度の証紙が不要ですのでよろしくお願い致します。
A37: 会社名
A39: 住所
A41: 氏名

Sheet 退職金共済手帳（参考）
L11: （見本）
H55: 貼付け前 | Q55: 貼付け後
